fUST/lending_fUST_20260329
["ID","MTS","AMOUNT","RATE_DAILY","PERIOD"]
[419007678,1774743038932,-300.0,0.00014864,2]
[419007680,1774743038942,-300.0,0.00014864,2]
[419007682,1774743038951,-300.0,0.00014864,2]
[419007683,1774743038960,-300.0,0.00014864,2]
[419007685,1774743038969,-300.0,0.00014864,2]
[419007687,1774743038978,-300.0,0.00014864,2]
[419007689,1774743038988,-480.0,0.00015066,2]
[419007691,1774743038997,-205.32541479,0.00015269,14]
[419007693,1774743039006,-500.0,0.00015926,2]
[419007694,1774743039015,-205.32541479,0.00016323,14]
[419007696,1774743039023,-205.32541479,0.00017377,14]
[419007698,1774743039032,-500.0,0.00017507,2]
[419007700,1774743039041,-896.1509745,0.0001776,2]
[419007702,1774743039050,-205.32541479,0.00018431,30]
[419007704,1774743039059,-205.32541479,0.00019485,30]
[419007705,1774743039068,-205.32541479,0.00020539,60]
[419007707,1774743039078,-10000.0,0.00021,5]
[419007709,1774743039087,-466.46243092,0.00021167,2]
[419007711,1774743039097,-205.32541479,0.00021593,60]
[419007713,1774743039106,-340.57737015,0.000224,55]
[419007715,1774743039116,-725.70248606,0.000224,55]
[419007717,1774743039125,-705.55886899,0.000224,55]
[419007719,1774743039134,-643.57415075,0.000224,55]
[419007720,1774743039142,-205.32541476,0.0002247,120]
[419007722,1774743039152,-500.0,0.00022473,2]
[419007724,1774743039161,-266.49572423,0.00022473,2]
[419007725,1774743039170,-500.0,0.00022473,2]
[419007726,1774743039179,-3410.77,0.0002249,3]
[419007727,1774743039188,-1817.45,0.0002249,3]
[419007728,1774743039198,-908.73,0.0002249,3]
[419007729,1774743039207,-500.0,0.00022573,2]
[419007730,1774743039217,-500.0,0.00022573,2]
[419007731,1774743039226,-500.0,0.00022603,2]
[419007732,1774743039235,-500.0,0.00022603,2]
[419007733,1774743039244,-502.46610768,0.00022603,2]
[419007734,1774743039253,-500.0,0.00022607,2]
[419007735,1774743039263,-7211.0271602,0.00022624,2]
[419007736,1774743039272,-158.4588353,0.00022624,2]
[419007737,1774743039282,-205.32541479,0.00022647,60]
[419007738,1774743039291,-324.8269307,0.00022748,2]
[419007739,1774743039301,-600.0,0.00022847,10]
[419007740,1774743039310,-1000.0,0.000229,2]
[419007742,1774743039319,-500.0,0.0002309,2]
[419007744,1774743039329,-500.0,0.0002309,2]
[419007746,1774743039338,-274.10816251,0.0002309,2]
[419007748,1774743039347,-215.91646739,0.0002309,2]
[419007750,1774743039357,-323.72141682,0.0002309,2]
[419007752,1774743039366,-500.0,0.0002309,2]
[419007754,1774743039376,-500.0,0.0002309,2]
[419007756,1774743039386,-393.53804084,0.0002309,2]
[419007758,1774743039396,-500.0,0.0002309,2]
[419007760,1774743039405,-500.0,0.0002309,2]
[419007762,1774743039415,-500.0,0.0002309,2]
[419007764,1774743039425,-500.0,0.0002309,2]
[419007766,1774743039435,-500.0,0.0002309,2]
[419007768,1774743039445,-500.0,0.0002309,2]
[419007770,1774743039454,-500.0,0.0002309,2]
[419007773,1774743039464,-500.0,0.0002309,2]
[419007775,1774743039474,-500.0,0.0002309,2]
[419007777,1774743039483,-500.0,0.0002309,2]
[419007779,1774743039492,-1409.56011675,0.00023091,2]
[419007780,1774743039501,-270.83333333,0.00023136,2]
[419007782,1774743039510,-1000.0,0.00023151,2]
[419007784,1774743039520,-564.16380277,0.0002319,2]
[419007786,1774743039530,-500.0,0.0002319,2]
[419007788,1774743039539,-500.0,0.0002319,2]
[419007790,1774743039549,-500.0,0.0002319,2]
[419007792,1774743039559,-500.0,0.0002319,2]
[419007794,1774743039569,-500.0,0.0002319,2]
[419007796,1774743039578,-500.0,0.0002319,2]
[419007798,1774743039587,-500.0,0.0002319,2]
[419007800,1774743039597,-500.0,0.0002319,2]
[419007802,1774743039606,-500.0,0.0002319,2]
[419007804,1774743039615,-500.0,0.0002319,2]
[419007806,1774743039625,-500.0,0.0002319,2]
[419007808,1774743039634,-500.0,0.0002319,2]
[419007810,1774743039644,-425.06391413,0.0002319,2]
[419007812,1774743039655,-500.0,0.0002319,2]
[419007814,1774743039664,-31792.85586181,0.00023191,2]
[419008116,1774743047232,-500.0,0.00023191,2]
[419008161,1774744232527,-884.51798206,0.00013425,10]
[419008173,1774744232634,-4115.48201794,0.00013425,10]
[419008175,1774744232643,-615.0,0.00013698,2]
[419008177,1774744232653,-1200.0,0.00013698,2]
[419008179,1774744232662,-1000.0,0.00013699,2]
[419008181,1774744232671,-300.0,0.00014695,2]
[419008183,1774744232680,-300.0,0.00014695,2]
[419008185,1774744232690,-300.0,0.00014697,2]
[419008187,1774744232699,-300.0,0.00014697,2]
[419008189,1774744232708,-300.0,0.00014697,2]
[419008191,1774744232718,-300.0,0.00014697,2]
[419008193,1774744232727,-300.0,0.00014697,2]
[419008195,1774744232737,-300.0,0.00014697,2]
[419008197,1774744232746,-300.0,0.00014697,2]
[419008199,1774744232755,-300.0,0.00014697,2]
[419008201,1774744232765,-300.0,0.00014697,2]
[419008203,1774744232774,-300.0,0.00014697,2]
[419008205,1774744232783,-300.0,0.00014697,2]
[419008207,1774744232792,-300.0,0.00014697,2]
[419008209,1774744232801,-300.0,0.00014697,2]
[419008211,1774744232810,-300.0,0.00014697,2]
[419008213,1774744232820,-300.0,0.00014697,2]
[419008215,1774744232830,-600.0,0.0001499,2]
[419008217,1774744232839,-1680.0,0.00015068,2]
[419008219,1774744232848,-720.0,0.00016489,2]
[419008221,1774744232858,-700.0,0.00017762,2]
[419008223,1774744232867,-864.0,0.00018138,2]
[419008225,1774744232876,-1000.0,0.00019952,2]
[419008227,1774744232885,-160.0,0.00021338,3]
[419008229,1774744232895,-160.38267118,0.00021338,5]
[419008231,1774744232904,-1000.0,0.00021947,10]
[419008233,1774744232914,-244.0,0.00021947,10]
[419008235,1774744232923,-500.37429636,0.00022,2]
[419008237,1774744232932,-500.0,0.00022,2]
[419008239,1774744232941,-500.0,0.00022548,2]
[419008241,1774744232951,-196.2113003,0.0002269,2]
[419008243,1774744232960,-1268.60410512,0.0002269,2]
[419008245,1774744232970,-500.0,0.00022773,2]
[419008247,1774744232979,-500.0,0.00022789,2]
[419008249,1774744232988,-500.0,0.00022789,2]
[419008251,1774744232998,-204.47529187,0.00022789,2]
[419008253,1774744233007,-500.0,0.00022789,2]
[419008255,1774744233016,-500.0,0.00022789,2]
[419008257,1774744233025,-500.0,0.00022789,2]
[419008259,1774744233036,-500.0,0.00022789,2]
[419008261,1774744233045,-500.0,0.00022789,2]
[419008263,1774744233054,-500.0,0.00022789,2]
[419008265,1774744233063,-500.0,0.00022789,2]
[419008267,1774744233072,-500.0,0.00022789,2]
[419008269,1774744233082,-500.0,0.00022789,2]
[419008271,1774744233091,-172.69387287,0.00022789,2]
[419008273,1774744233100,-500.0,0.00022789,2]
[419008275,1774744233110,-500.0,0.00022789,2]
[419008277,1774744233120,-500.0,0.00022789,2]
[419008279,1774744233130,-500.0,0.00022789,2]
[419008281,1774744233140,-500.0,0.00022789,2]
[419008283,1774744233149,-500.0,0.00022789,2]
[419008285,1774744233158,-500.0,0.00022789,2]
[419008287,1774744233168,-500.0,0.00022789,2]
[419008288,1774744233176,-419.98099567,0.00022789,2]
[419008289,1774744233186,-572.51006853,0.00022789,2]
[419008290,1774744233195,-500.0,0.00022789,2]
[419008291,1774744233204,-517.89013872,0.00022789,2]
[419008292,1774744233212,-500.0,0.00022789,2]
[419008293,1774744233221,-164783.39524144,0.0002279,2]
[419008396,1774744241451,-2384.83092351,0.0002279,2]
[419008658,1774744244208,-9541.57937433,0.0002279,2]
[419008668,1774744244299,-14542.07495703,0.0002279,2]
[419008684,1774744244485,-2836.07477566,0.0002279,2]
[419008771,1774744247044,-24368.94900374,0.0002279,2]
[419008772,1774744247220,-1739.089,0.0002279,2]
[419008807,1774745431996,-2966.91,7.578e-05,10]
[419008808,1774745432008,-2033.09,7.578e-05,10]
[419008809,1774745432019,-325.97825358,7.655e-05,2]
[419008810,1774745432028,-528.0,7.655e-05,2]
[419008811,1774745432037,-300.0,0.00013696,2]
[419008812,1774745432047,-300.0,0.00013696,2]
[419008813,1774745432056,-990.0,0.00013696,2]
[419008814,1774745432065,-300.0,0.00013697,2]
[419008815,1774745432074,-300.0,0.00013698,2]
[419008816,1774745432085,-300.0,0.00013698,2]
[419008817,1774745432095,-1000.0,0.00013699,2]
[419008818,1774745432104,-304.08225398,0.000137,2]
[419008819,1774745432115,-195.91774602,0.000137,2]
[419008820,1774745432125,-1101.0994888,0.00019881,2]
[419008857,1774745438162,-966.53880659,7.478e-05,2]
[419008858,1774745438172,-5218.3864036,0.00019881,2]
[419008859,1774745438182,-271.45535934,0.00020839,2]
[419008860,1774745438297,-1000.0,0.00020865,2]
[419008861,1774745438307,-310.23469639,0.00021614,2]
[419008862,1774745438317,-218.80774575,0.00021724,2]
[419008863,1774745438326,-557.5788265,0.00022205,2]
[419008864,1774745438336,-2230.315306,0.00022205,2]
[419008865,1774745438345,-578.20924308,0.0002226,2]
[419008866,1774745438354,-599.60298507,0.00022315,2]
[419008867,1774745438364,-364.17323438,0.00022364,2]
[419008868,1774745438374,-439.65569503,0.0002237,2]
[419008869,1774745438383,-155.60769395,0.000225,48]
[419008870,1774745438392,-164.9089569,0.000225,48]
[419008871,1774745438401,-166.91217143,0.000225,48]
[419008872,1774745438411,-167.96303605,0.000225,48]
[419008873,1774745438420,-1141.74369459,0.000225,2]
[419008874,1774745438430,-500.49925032,0.00022573,2]
[419008875,1774745438440,-263.58035189,0.00022573,2]
[419008876,1774745438449,-500.0,0.00022573,2]
[419008877,1774745438458,-234.27794699,0.00022573,2]
[419008878,1774745438467,-270.98635982,0.00022573,2]
[419008879,1774745438477,-500.47750466,0.00022573,2]
[419008880,1774745438486,-500.0,0.00022573,2]
[419008881,1774745438496,-500.0,0.00022573,2]
[419008882,1774745438505,-500.64561472,0.00022573,2]
[419008883,1774745438514,-500.0,0.00022573,2]
[419008884,1774745438524,-500.0,0.00022573,2]
[419008885,1774745438533,-497.55254739,0.00022586,2]
[419008886,1774745438543,-537.6845,0.00022586,2]
[419008887,1774745438552,-348.05246392,0.00022589,2]
[419008888,1774745438564,-145.08024039,0.00022589,2]
[419008889,1774745438573,-382.10949755,0.00022589,2]
[419008946,1774745440831,-117.89050245,0.00022589,2]
[419008948,1774745440841,-500.0,0.00022589,2]
[419008950,1774745440851,-500.0,0.00022589,2]
[419008952,1774745440861,-157.77566619,0.00022589,2]
[419008954,1774745440870,-335.32112653,0.00022589,2]
[419008956,1774745440879,-230.2788965,0.00022589,2]
[419008958,1774745440890,-500.0,0.00022589,2]
[419008960,1774745440900,-500.0,0.00022589,2]
[419008962,1774745440910,-270.88571101,0.00022589,2]
[419008964,1774745440919,-8486.96877231,0.0002259,2]
[419009222,1774745443466,-499.48143251,0.0002259,2]
[419009252,1774745443759,-806.99127554,0.0002259,2]
[419009411,1774745446147,-4717.07435341,0.0002259,2]
[419009412,1774745446159,-1992.05983524,0.0002259,2]
[419009413,1774745446204,-95868.43507624,0.0002259,2]
[419009435,1774746119007,-610.85201418,0.00013291,10]
[419009479,1774746632014,-500.0,0.00013143,2]
[419009481,1774746632023,-606.0,0.00013143,2]
[419009482,1774746632033,-5000.0,0.00013158,2]
[419009484,1774746632042,-1200.0,0.00013423,2]
[419009487,1774746632051,-300.0,0.00013425,2]
[419009488,1774746632061,-500.0,0.00013426,2]
[419009489,1774746632070,-500.0,0.00013426,2]
[419009490,1774746632080,-290.4,0.00013426,2]
[419009491,1774746632092,-18.31139699,0.00013426,2]
[419009492,1774746632102,-397.25682581,0.000135,2]
[419009506,1774746638209,-102.74317419,0.000135,2]
[419009507,1774746638219,-500.0,0.000135,2]
[419009508,1774746638228,-197.25682581,0.00013699,2]
[419009509,1774746638316,-802.74317419,0.00013699,2]
[419009510,1774746638326,-197.25682581,0.00014048,2]
[419009756,1774746643543,-336.68326718,0.00013365,2]
[419009777,1774746646383,-4663.31673282,0.00013365,2]
[419009778,1774746646393,-659.83071136,0.00014048,2]
[419009779,1774746646403,-1200.0,0.00014765,2]
[419009780,1774746646412,-500.0,0.00015,2]
[419009781,1774746646421,-1036.09736308,0.00015,10]
[419009782,1774746646432,-500.0,0.0001597,2]
[419009783,1774746646442,-500.0,0.00016,2]
[419009784,1774746646451,-1000.0,0.00019,2]
[419009785,1774746646461,-189.58442857,0.00020173,2]
[419009786,1774746646471,-484.2569714,0.00020173,2]
[419009787,1774746646480,-197.834912,0.00021629,2]
[419009788,1774746646489,-544.21504314,0.000218,38]
[419009789,1774746646498,-2710.00850198,0.000218,38]
[419009790,1774746646508,-1271.90641274,0.000218,38]
[419009791,1774746646518,-1999.59778233,0.000218,38]
[419009794,1774746646528,-1746.87637817,0.000218,38]
[419009795,1774746646538,-2228.44244004,0.000218,38]
[419009798,1774746646547,-454.9280236,0.00021882,2]
[419009799,1774746646556,-500.0,0.00021899,2]
[419009801,1774746646566,-345.19289302,0.00021899,2]
[419009803,1774746646575,-500.0,0.00021899,2]
[419009805,1774746646584,-500.0,0.00021899,2]
[419009806,1774746646593,-500.0,0.00021899,2]
[419009807,1774746646602,-439.61999771,0.00021899,2]
[419009808,1774746646611,-327220.0936837,0.000219,2]
[419009809,1774746646622,-10231.15794776,0.000219,2]
[419009810,1774746646633,-110020.80367868,0.000219,2]
[419009811,1774746646644,-12016.39653973,0.000219,2]
[419009856,1774747832218,-5000.0,7.427e-05,10]
[419009858,1774747832228,-665.82943467,7.655e-05,2]
[419009859,1774747832237,-528.0,7.655e-05,2]
[419009861,1774747832246,-1200.0,0.00013697,2]
[419009863,1774747832255,-300.0,0.00013698,2]
[419009865,1774747832264,-300.0,0.00013698,2]
[419009866,1774747832273,-300.0,0.00013698,2]
[419009867,1774747832282,-1000.0,0.00013699,2]
[419009868,1774747832290,-500.0,0.000137,2]
[419009869,1774747832299,-500.0,0.000137,2]
[419009870,1774747832308,-500.0,0.000137,2]
[419009871,1774747832318,-500.0,0.000137,2]
[419009872,1774747832327,-500.0,0.000137,2]
[419009873,1774747832336,-500.0,0.000137,2]
[419009874,1774747832345,-500.0,0.000137,2]
[419009875,1774747832356,-500.31540802,0.000137,2]
[419009876,1774747832365,-508.80168598,0.000137,2]
[419009877,1774747832374,-500.0,0.00013863,2]
[419009878,1774747832384,-910.96922352,0.0001401,2]
[419009879,1774747832393,-305.0,0.00015012,2]
[419009880,1774747832403,-1000.0,0.00015889,2]
[419009881,1774747832413,-651.62230871,0.00021384,2]
[419009882,1774747832422,-36213.18057202,0.000215,2]
[419009883,1774747832434,-613.69461737,0.000215,2]
[419009906,1774747838535,-242.47953792,0.00021499,2]
[419009908,1774747838545,-310.63630041,0.00021499,2]
[419009957,1774747844394,-189.36369959,0.00021499,2]
[419009959,1774747844404,-216.98124547,0.00021499,2]
[419009961,1774747844413,-500.0,0.00021499,2]
[419009964,1774747844423,-500.0,0.00021499,2]
[419009966,1774747844432,-430.08442891,0.00021499,2]
[419009967,1774747844441,-15083.44643981,0.000215,2]
[419009968,1774747844457,-256.2,0.000215,2]
[419009983,1774747847056,-837.39859884,0.00021284,10]
[419009984,1774747847070,-4162.60140116,0.00021284,10]
[419009985,1774747847081,-4310.17736062,0.000215,2]
[419010057,1774749032381,-5000.0,0.00013159,10]
[419010058,1774749032393,-1200.0,0.00013697,2]
[419010059,1774749032404,-615.0,0.00013698,2]
[419010060,1774749032415,-1000.0,0.00013699,2]
[419010061,1774749032425,-300.0,0.00015063,2]
[419010062,1774749032437,-300.0,0.00015064,2]
[419010063,1774749032447,-300.0,0.00015064,2]
[419010064,1774749032459,-1680.0,0.00015067,2]
[419010065,1774749032469,-169.68530969,0.00016486,2]
[419010181,1774749038631,-959.71502502,0.00016321,10]
[419011023,1774749046991,-4040.28497498,0.00016321,10]
[419011025,1774749047004,-250.31469031,0.00016486,2]
[419011027,1774749047015,-151.2989683,0.00018,2]
[419011028,1774749047026,-511.21461157,0.00018788,2]
[419011029,1774749047036,-160.34676699,0.000188,2]
[419011030,1774749047047,-159.0,0.000199,2]
[419011031,1774749047057,-1000.0,0.0002,2]
[419011032,1774749047068,-159.0,0.0002,2]
[419011033,1774749047079,-500.0,0.00020145,2]
[419011034,1774749047089,-302.28782322,0.00020489,2]
[419011035,1774749047101,-237.04327508,0.00021285,2]
[419011036,1774749047112,-159.0,0.000214,2]
[419011037,1774749047125,-41274.8051303,0.00021498,2]
[419011038,1774749047137,-500.0,0.00021499,2]
[419011039,1774749047150,-500.0,0.00021499,2]
[419011040,1774749047161,-201.88687182,0.00021499,2]
[419011041,1774749047173,-844.97,0.000215,2]
[419011042,1774749047183,-9256.6841073,0.00021539,2]
[419011043,1774749047195,-3036.2176039,0.00021539,2]
[419011044,1774749047207,-2230.315306,0.00021643,2]
[419011045,1774749047220,-154.28809978,0.00021716,3]
[419011046,1774749047233,-179.87264833,0.00021716,3]
[419011047,1774749047247,-160.14096102,0.00021716,3]
[419011048,1774749047259,-1968.0135475,0.00021722,2]
[419011049,1774749047271,-382.7280283,0.00021722,2]
[419011050,1774749047282,-152.75643018,0.00021751,2]
[419011052,1774749047293,-152.32872759,0.00021751,2]
[419011054,1774749047305,-180.52636476,0.00021751,2]
[419011055,1774749047316,-155.41794725,0.00021751,2]
[419011057,1774749047327,-1375.0,0.00021863,10]
[419011059,1774749047337,-159.0,0.000219,3]
[419011060,1774749047348,-159.0,0.000219,4]
[419011062,1774749047359,-1000.0,0.000219,2]
[419011063,1774749047369,-1029.47662847,0.000219,2]
[419011064,1774749047380,-600.0,0.00021927,10]
[419011065,1774749047390,-154.46823356,0.00021973,2]
[419011066,1774749047400,-642.55506992,0.00021973,2]
[419011067,1774749047410,-500.43194379,0.00021973,2]
[419011068,1774749047421,-500.61720881,0.00021973,2]
[419011070,1774749047430,-500.81168694,0.00021973,2]
[419011071,1774749047440,-507.08761786,0.00021973,2]
[419011073,1774749047452,-150.10989655,0.00021973,2]
[419011074,1774749047462,-2376.6,0.0002199,3]
[419011076,1774749047472,-1362.2,0.0002199,3]
[419011078,1774749047482,-681.1,0.0002199,3]
[419011079,1774749047492,-340.55,0.0002199,3]
[419011080,1774749047503,-170.28,0.0002199,3]
[419011082,1774749047513,-510.86,0.0002199,3]
[419011084,1774749047523,-169.73567654,0.00021999,2]
[419011085,1774749047534,-206051.9626451,0.00022,2]
[419011086,1774749047547,-7070.23664682,0.00022,2]
[419011098,1774749719005,-2179.1637508,0.00012772,2]
[419011158,1774750232551,-597.0,0.00012517,2]
[419011160,1774750232560,-767.98059639,0.00013135,2]
[419011162,1774750232569,-273.39703742,0.00013135,2]
[419011164,1774750232579,-213.11085411,0.00013232,2]
[419011168,1774750232605,-986.88914589,0.00013232,2]
[419011170,1774750232614,-300.0,0.00013233,2]
[419011172,1774750232622,-300.0,0.00013233,2]
[419011174,1774750232631,-300.0,0.00013233,2]
[419011175,1774750232641,-300.0,0.00013233,2]
[419011177,1774750232652,-1521.95277676,0.00013235,2]
[419011179,1774750232661,-1650.447745,0.00013335,2]
[419011181,1774750232670,-1773.1933237,0.00013435,2]
[419011182,1774750232680,-348.27924708,0.0001347,2]
[419011185,1774750232692,-153.04634994,0.0001347,2]
[419011187,1774750232701,-314.48007628,0.00013535,2]
[419011275,1774750238726,-2118.66704675,0.00012392,2]
[419011288,1774750238835,-2881.33295325,0.00012392,2]
[419011290,1774750238845,-1581.45882621,0.00013535,2]
[419011292,1774750238854,-500.0,0.00013593,2]
[419011294,1774750238863,-2018.68448129,0.00013635,2]
[419011296,1774750238872,-1000.0,0.00013699,2]
[419011298,1774750238881,-300.0,0.00013703,2]
[419011299,1774750238890,-300.0,0.00013703,2]
[419011302,1774750238900,-300.0,0.00013703,2]
[419011303,1774750238909,-300.0,0.00013703,2]
[419011305,1774750238919,-300.0,0.00013703,2]
[419011307,1774750238928,-300.0,0.00013703,2]
[419011309,1774750238937,-300.0,0.00013703,2]
[419011311,1774750238947,-300.0,0.00013703,2]
[419011313,1774750238956,-300.0,0.00013703,2]
[419011315,1774750238965,-300.0,0.00013703,2]
[419011317,1774750238974,-300.0,0.00013703,2]
[419011320,1774750238984,-300.0,0.00013703,2]
[419011322,1774750238993,-300.0,0.00013703,2]
[419011324,1774750239003,-300.0,0.00013703,2]
[419011326,1774750239012,-300.0,0.00013703,2]
[419011328,1774750239021,-262.8169426,0.00014228,2]
[419011330,1774750239030,-1000.0,0.0001441,2]
[419011332,1774750239040,-420.0,0.00014509,2]
[419011334,1774750239052,-2141.43006008,0.00014533,2]
[419011336,1774750239062,-500.0,0.00014749,2]
[419011338,1774750239071,-500.0,0.00015731,2]
[419011340,1774750239080,-2264.17563887,0.00016122,11]
[419011341,1774750239091,-2275.92495713,0.00017711,18]
[419011343,1774750239101,-2668.13732157,0.000193,25]
[419011345,1774750239111,-390.57856185,0.00019815,2]
[419011347,1774750239120,-18001.20902578,0.00019816,2]
[419011350,1774750239131,-3139.97818459,0.00019816,2]
[419012093,1774750247100,-1901.41835745,0.00019816,2]
[419012094,1774750247112,-1062.35151018,0.00019816,2]
[419012095,1774750247122,-182.839258,0.00019947,2]
[419012096,1774750247131,-201.3450403,0.00020028,2]
[419012097,1774750247141,-500.0,0.00020028,2]
[419012098,1774750247150,-502.04872152,0.00020028,2]
[419012099,1774750247160,-500.80810786,0.00020032,2]
[419012100,1774750247170,-331.88944667,0.00020032,2]
[419012101,1774750247180,-500.0,0.00020032,2]
[419012102,1774750247190,-502.93054465,0.00020033,2]
[419012103,1774750247199,-500.48672798,0.00020161,2]
[419012104,1774750247208,-600.0,0.00020211,2]
[419012105,1774750247218,-500.0,0.00020262,2]
[419012106,1774750247227,-152.93485424,0.00020262,2]
[419012107,1774750247237,-492.34445647,0.00020498,2]
[419012108,1774750247246,-504.19689569,0.0002081,2]
[419012109,1774750247255,-3029.8971375,0.00020889,32]
[419012110,1774750247264,-1733.1724882,0.00021,6]
[419012111,1774750315969,1066.7,5e-05,10]
[419012149,1774750793567,3000.0,7.655e-05,120]
[419012184,1774751432647,-5000.0,0.00012895,2]
[419012185,1774751432657,-1200.0,0.00013025,2]
[419012186,1774751432667,-605.0,0.00013026,2]
[419012188,1774751432676,-300.0,0.00013693,2]
[419012190,1774751432684,-300.0,0.00013693,2]
[419012192,1774751432693,-300.0,0.00013693,2]
[419012194,1774751432702,-300.0,0.00013694,2]
[419012196,1774751432711,-300.0,0.00013694,2]
[419012198,1774751432721,-300.0,0.00013694,2]
[419012200,1774751432730,-300.0,0.00013694,2]
[419012202,1774751432739,-300.0,0.00013694,2]
[419012204,1774751432748,-300.0,0.00013694,2]
[419012206,1774751432758,-300.0,0.00013694,2]
[419012208,1774751432766,-300.0,0.00013694,2]
[419012210,1774751432775,-300.0,0.00013694,2]
[419012212,1774751432784,-300.0,0.00013694,2]
[419012214,1774751432793,-300.0,0.00013694,2]
[419012216,1774751432801,-300.0,0.00013694,2]
[419012218,1774751432810,-300.0,0.00013694,2]
[419012220,1774751432819,-300.0,0.00013694,2]
[419012222,1774751432829,-300.0,0.00013694,2]
[419012224,1774751432838,-1000.0,0.00013699,2]
[419012225,1774751432846,-553.72644851,0.000137,2]
[419012227,1774751432855,-600.0,0.00013967,2]
[419012229,1774751432865,-306.16631155,0.00015364,2]
[419012231,1774751432876,-387.88444856,0.00015364,2]
[419012233,1774751432887,-25.94923989,0.00015364,2]
[419012234,1774751432896,-864.0,0.000169,2]
[419012235,1774751432906,-151.1643735,0.00017932,2]
[419012236,1774751432915,-631.5771429,0.00017932,2]
[419012237,1774751432924,-1000.0,0.0001859,2]
[419012238,1774751432935,-348.19889854,0.00019225,2]
[419012239,1774751432945,-151.0,0.00019538,2]
[419012240,1774751432954,-631.5771429,0.00020289,2]
[419012241,1774751432964,-500.0,0.00020422,2]
[419012242,1774751432972,-1000.0,0.00020449,2]
[419012243,1774751432981,-244.0,0.00020449,2]
[419012244,1774751432991,-500.0,0.00020512,2]
[419012245,1774751433000,-500.0,0.00020512,2]
[419012246,1774751433009,-973.92113087,0.0002081,2]
[419012256,1774751439027,-26.07886913,0.0002081,2]
[419012258,1774751439036,-2866.49295455,0.00021,6]
[419012269,1774751439138,-14613.09922016,0.00021,6]
[419012271,1774751439150,-872.06365179,0.00021,6]
[419012512,1774751441542,-1175.66510949,0.00021,6]
[419012513,1774751441555,-1202.22657072,0.00021,6]
[419012514,1774751441620,-396.27900709,0.00021,6]
[419012778,1774751444230,-8378.62888832,0.00021,6]
[419012781,1774751444242,-8686.71392386,0.00021,6]
[419012810,1774751444509,-336.33341679,0.00021,6]
[419013067,1774751447075,-567.32476903,0.00021,6]
[419013069,1774751447086,-601.257,0.00021,2]
[419013071,1774751447096,-185.84748824,0.00021,2]
[419013073,1774751447105,-167.7139822,0.00021158,2]
[419013075,1774751447115,-196.9910531,0.00021182,2]
[419013077,1774751447125,-278.64707953,0.00021286,2]
[419013102,1774751447356,-172.80645695,0.00021286,2]
[419013104,1774751447366,-162.8726988,0.00021286,2]
[419013106,1774751447376,-142.55443649,0.00021286,2]
[419013231,1774751515019,2000.0,0.00011905,2]
[419013364,1774752631806,-5000.0,0.00013027,2]
[419013366,1774752631815,-607.0,0.00013159,2]
[419013368,1774752631824,-479.92154975,0.00013398,2]
[419013370,1774752631834,-909.37530861,0.00013498,2]
[419013372,1774752631842,-1338.82906746,0.00013598,2]
[419013374,1774752631851,-214.0,0.00013665,2]
[419013376,1774752631860,-300.0,0.00013666,2]
[419013377,1774752631869,-502.93054465,0.00013667,2]
[419013378,1774752631877,-201.3450403,0.00013667,2]
[419013380,1774752631886,-502.04872152,0.00013667,2]
[419013382,1774752631895,-500.0,0.00013667,2]
[419013383,1774752631904,-507.35804444,0.00013667,2]
[419013385,1774752631913,-500.0,0.00013667,2]
[419013386,1774752631922,-331.88944667,0.00013667,2]
[419013387,1774752631931,-500.80810786,0.00013667,2]
[419013388,1774752631940,-500.0,0.00013667,2]